bitfinex-derivatives/quotes_SOLF0:USTF0_20251026
["timestamp","ask_amount","ask_price","bid_price","bid_amount"]
[1761467256807,3.89383119,193.86,193.84,2.76]
[1761467257005,0.22,193.87,193.84,2.76]
[1761467257303,3.89383119,193.86,193.84,2.76]
[1761467257508,0.22,193.87,193.84,2.76]
[1761467257698,3.89442512,193.86,193.84,2.76]
[1761467257899,0.22,193.87,193.84,2.76]
[1761467258096,3.89442248,193.86,193.84,2.76]
[1761467258309,0.22,193.87,193.84,2.76]
[1761467258500,3.89507599,193.86,193.84,2.76]
[1761467258799,0.22,193.87,193.84,2.76]
[1761467259100,3.89507336,193.86,193.84,2.76]
[1761467259300,0.22,193.87,193.84,2.76]
[1761467259595,3.89580421,193.86,193.84,2.76]
[1761467259799,0.22,193.87,193.84,2.76]
[1761467260094,3.89580421,193.86,193.84,2.76]
[1761467260294,0.22,193.87,193.84,2.76]
[1761467260499,3.89662027,193.86,193.84,2.76]
[1761467260705,0.22,193.87,193.84,2.76]
[1761467260908,3.89639014,193.86,193.84,2.76]
[1761467261110,0.22,193.87,193.84,2.76]
[1761467261308,3.89638426,193.86,193.84,2.76]
[1761467261509,3.89638426,193.85,193.84,2.76]
[1761467267316,101.78816653,193.88,193.84,2.76]
[1761467267621,3.9025963,193.87,193.84,2.76]
[1761467267914,101.78816653,193.88,193.84,2.76]
[1761467268117,3.90297524,193.87,193.84,2.76]
[1761467268412,101.78816653,193.88,193.84,2.76]
[1761467268615,3.90257196,193.87,193.84,2.76]
[1761467268816,101.78816653,193.88,193.84,2.76]
[1761467269015,3.90257195,193.87,193.84,2.76]
[1761467269217,101.78816653,193.88,193.84,2.76]
[1761467271020,101.78816653,193.88,193.85,1.49936532]
[1761467271219,101.78816653,193.88,193.86,2.76]
[1761467277323,0.22,193.93,193.86,2.76]
[1761467277523,4.11878584,193.92,193.86,2.76]
[1761467277819,4.11878584,193.91,193.86,2.76]
[1761467278017,3.89878584,193.9,193.86,2.76]
[1761467278326,0.22,193.91,193.86,2.76]
[1761467278535,3.89822817,193.9,193.86,2.76]
[1761467278826,0.22,193.91,193.86,2.76]
[1761467279010,3.89822934,193.9,193.86,2.76]
[1761467279210,0.22,193.91,193.86,2.76]
[1761467279417,3.89773293,193.9,193.86,2.76]
[1761467279623,0.22,193.91,193.86,2.76]
[1761467279921,3.89773084,193.9,193.86,2.76]
[1761467280223,0.22,193.91,193.86,2.76]
[1761467280523,3.89762824,193.9,193.86,2.76]
[1761467280821,0.22,193.91,193.86,2.76]
[1761467281020,3.89762824,193.9,193.86,2.76]
[1761467281215,0.22,193.91,193.86,2.76]
[1761467281414,3.89714274,193.9,193.86,2.76]
[1761467281622,0.22,193.91,193.86,2.76]
[1761467281818,3.89713856,193.9,193.86,5.43]
[1761467282017,0.22,193.91,193.87,2.88]
[1761467282320,3.89673864,193.9,193.87,2.88]
[1761467282525,0.22,193.91,193.87,2.88]
[1761467282722,3.89665415,193.9,193.87,2.88]
[1761467283018,0.22,193.91,193.87,2.88]
[1761467283730,3.89620322,193.9,193.87,2.88]
[1761467284026,0.22,193.91,193.87,2.88]
[1761467285724,62.25,193.94,193.87,2.88]
[1761467285923,3.8954554,193.93,193.87,2.88]
[1761467286223,4.1254554,193.92,193.87,2.88]
[1761467286527,3.8954554,193.91,193.87,2.88]
[1761467286725,0.23,193.92,193.87,2.88]
[1761467286925,4.12514386,193.91,193.87,2.88]
[1761467287227,0.23,193.91,193.87,2.88]
[1761467287418,0.23,193.94,193.87,2.88]
[1761467287619,3.89487189,193.93,193.87,2.88]
[1761467287926,4.12487189,193.92,193.87,2.88]
[1761467288127,3.89487189,193.91,193.87,2.88]
[1761467288331,0.23,193.92,193.87,2.88]
[1761467288521,3.89438841,193.91,193.87,2.88]
[1761467288727,0.23,193.92,193.87,2.88]
[1761467288927,3.89438841,193.91,193.87,2.88]
[1761467289124,0.23,193.92,193.87,2.88]
[1761467289430,3.89418399,193.91,193.87,2.88]
[1761467289631,0.23,193.92,193.87,2.88]
[1761467289829,3.89418818,193.91,193.87,2.88]
[1761467290029,0.23,193.92,193.87,2.88]
[1761467290324,3.89406792,193.91,193.87,2.88]
[1761467290524,0.23,193.92,193.87,2.88]
[1761467290824,3.89401348,193.91,193.87,2.88]
[1761467291018,0.23,193.92,193.87,2.88]
[1761467291224,4.0998751,193.91,193.87,2.88]
[1761467291426,0.22,193.91,193.87,2.88]
[1761467292730,4.45658864,193.95,193.87,2.88]
[1761467292930,0.22,193.93,193.87,2.88]
[1761467293131,4.09948742,193.92,193.87,2.88]
[1761467293330,3.87948742,193.91,193.87,2.88]
[1761467293531,0.22,193.92,193.87,2.88]
[1761467293731,3.87940378,193.91,193.87,2.88]
[1761467293929,0.22,193.92,193.87,2.88]
[1761467296634,0.22,193.96,193.87,2.88]
[1761467296833,3.87978963,193.95,193.87,2.88]
[1761467297032,0.22,193.96,193.87,2.88]
[1761467297929,0.22,193.96,193.87,7.5215]
[1761467298131,0.22,193.96,193.88,2.81]
[1761467298929,3.87761415,193.95,193.88,2.81]
[1761467299130,0.22,193.96,193.88,2.81]
[1761467299344,4.09714854,193.95,193.88,2.81]
[1761467299528,0.22,193.95,193.88,2.81]
[1761467300833,4.0967855,193.95,193.88,2.81]
[1761467301132,0.22,193.95,193.88,2.81]
[1761467304622,4.0959382,193.98,193.89,2.81]
[1761467304839,3.8759382,193.97,193.89,2.81]
[1761467305133,3.8759382,193.96,193.89,2.81]
[1761467305333,4.0959382,193.97,193.89,2.81]
[1761467305535,3.8759382,193.96,193.89,2.81]
[1761467306336,3.87597746,193.96,193.89,2.81]
[1761467307126,0.22,193.97,193.89,2.81]
[1761467307328,3.87604307,193.96,193.89,2.81]
[1761467309135,0.22,193.97,193.89,2.81]
[1761467311240,3.87731376,193.96,193.89,2.81]
[1761467311438,0.22,193.99,193.89,2.81]
[1761467311733,3.87731092,193.98,193.89,2.81]
[1761467311941,3.87731092,193.97,193.89,2.81]
[1761467312139,0.22,193.99,193.89,2.81]
[1761467312334,0.22,193.97,193.89,2.81]
[1761467312636,0.22,193.95,193.89,2.81]
[1761467313345,4.09777453,193.98,193.89,2.81]
[1761467313529,3.87777453,193.97,193.9,2.81]
[1761467313731,0.22,193.98,193.9,2.81]
[1761467314533,0.22,193.98,193.91,2.81]
[1761467315837,0.22,194.01,193.92,2.81]
[1761467316037,3.87754829,194.0,193.92,2.81]
[1761467316339,3.87754829,193.99,193.92,2.81]
[1761467316532,3.87754829,193.98,193.92,2.81]
[1761467316739,0.22,194.01,193.92,2.81]
[1761467317042,3.87727423,194.0,193.92,2.81]
[1761467317236,3.87727423,193.99,193.92,2.81]
[1761467317437,3.87727423,193.98,193.92,2.81]
[1761467317638,0.22,194.01,193.92,2.81]
[1761467317936,4.09720729,194.0,193.92,2.81]
[1761467318130,3.87720729,193.99,193.92,2.81]
[1761467318330,0.22,194.0,193.92,2.81]
[1761467318538,3.87739362,193.99,193.92,2.81]
[1761467318744,0.22,194.0,193.92,2.81]
[1761467318943,3.87739362,193.99,193.92,2.81]
[1761467319138,3.87685314,193.99,193.92,2.81]
[1761467320845,4.09685314,193.99,193.92,2.81]
[1761467321039,0.22,193.99,193.92,2.81]
[1761467323541,0.22,193.99,193.94,2.71]
[1761467332458,3.87263472,194.01,193.94,2.71]
[1761467332654,3.87263472,194.0,193.94,4.20647369]
[1761467332856,4.09263472,194.0,193.95,2.71]
[1761467333056,0.22,194.0,193.95,2.71]
[1761467337674,0.22,194.03,193.96,2.71]
[1761467337974,4.09568152,194.02,193.96,2.71]
[1761467338175,4.09568152,194.01,193.96,2.71]
[1761467338375,3.87568152,194.0,193.96,2.71]
[1761467338670,0.22,194.01,193.96,2.71]
[1761467338971,3.87630928,194.0,193.96,2.71]
[1761467339178,0.22,194.01,193.96,2.71]
[1761467339371,3.87713917,194.0,193.96,2.71]
[1761467339569,0.22,194.01,193.96,2.71]
[1761467339777,3.87713917,194.0,193.96,2.71]
[1761467339977,0.22,194.01,193.96,2.71]
[1761467340178,3.87713896,194.0,193.96,2.71]
[1761467340371,0.22,194.01,193.96,2.71]
[1761467340571,3.87807248,194.0,193.96,2.71]
[1761467340777,0.22,194.01,193.96,2.71]
[1761467340977,3.87889017,194.0,193.96,2.71]
[1761467341278,0.22,194.01,193.96,2.71]
[1761467341478,3.88020512,194.0,193.96,2.71]
[1761467341681,0.22,194.01,193.96,2.71]
[1761467341880,3.87993042,194.0,193.96,2.71]
[1761467342079,0.22,194.01,193.96,2.71]
[1761467342276,3.879795,194.0,193.96,2.71]
[1761467342476,0.22,194.01,193.96,2.71]
[1761467342676,3.87967627,194.0,193.96,2.71]
[1761467342876,0.22,194.01,193.96,2.71]
[1761467343076,3.87967627,194.0,193.96,2.71]
[1761467343277,0.22,194.01,193.96,2.71]
[1761467343481,3.87963471,194.0,193.96,2.71]
[1761467343778,0.22,194.01,193.96,2.71]
[1761467343980,3.87963471,194.0,193.96,2.71]
[1761467344178,0.22,194.01,193.96,2.71]
[1761467344379,3.8798215,194.0,193.96,2.71]
[1761467344582,0.22,194.01,193.96,2.71]
[1761467344778,3.87974333,194.0,193.96,2.71]
[1761467345079,0.22,194.01,193.96,2.71]
[1761467345282,3.87996301,194.0,193.96,2.71]
[1761467345482,0.22,194.01,193.96,2.71]
[1761467345679,3.87990192,194.0,193.96,2.71]
[1761467345881,0.22,194.01,193.96,2.71]
[1761467346182,3.87990192,194.0,193.96,2.71]
[1761467346478,0.22,194.01,193.96,2.71]
[1761467346682,4.80826387,194.04,193.96,2.71]
[1761467346683,3.88011264,194.0,193.96,2.71]
[1761467346884,4.44703907,194.03,193.96,2.71]
[1761467347179,3.8802895,194.02,193.96,2.71]
[1761467347384,3.8802895,194.01,193.96,2.71]
[1761467347681,0.22,194.03,193.96,2.71]
[1761467347982,3.88063608,194.02,193.96,2.71]
[1761467348185,3.88063608,194.01,193.96,2.71]
[1761467348384,0.22,194.03,193.96,2.71]
[1761467348684,3.88099106,194.02,193.96,2.71]
[1761467348983,3.88099106,194.01,193.96,2.71]
[1761467349285,3.88099106,194.0,193.96,2.71]
[1761467349485,4.66703907,194.03,193.96,2.71]
[1761467349684,3.8813784,194.02,193.96,2.71]
[1761467349876,3.8813784,194.01,193.96,2.71]
[1761467350072,3.8813784,194.0,193.96,2.71]
[1761467350273,4.66703907,194.03,193.96,2.71]
[1761467350481,3.88157421,194.02,193.96,2.71]
[1761467350683,4.10157421,194.01,193.96,2.71]
[1761467350882,3.88157421,194.0,193.96,2.71]
[1761467351083,0.22,194.01,193.96,2.71]
[1761467351382,3.88048998,194.0,193.96,2.71]
[1761467351582,0.22,194.01,193.96,2.71]
[1761467351785,3.88045806,194.0,193.96,2.71]
[1761467351983,0.22,194.01,193.96,2.71]
[1761467352187,3.88045806,194.0,193.97,1.49647369]
[1761467352391,0.22,194.01,193.98,2.63]
[1761467352589,3.88075688,194.0,193.98,2.63]
[1761467352883,0.22,194.02,193.99,2.63]
[1761467353084,3.88093376,194.01,193.99,2.63]
[1761467353284,3.88093376,194.0,193.99,2.63]
[1761467356882,0.22,194.02,193.99,2.63]
[1761467357088,3.88262311,194.01,193.99,2.63]
[1761467357390,0.22,194.02,193.99,2.63]
[1761467357579,3.88297179,194.01,193.99,2.63]
[1761467357775,0.22,194.02,193.99,2.63]
[1761467357976,3.88297179,194.01,193.99,2.63]
[1761467358288,3.88360731,194.0,193.99,2.63]
[1761467364493,3.88406852,194.0,193.99,2.63]
[1761467371495,4.10406852,194.0,193.99,61.96]
[1761467372698,3.88406852,194.0,193.99,64.59]
[1761467385806,4.10406852,194.0,193.99,61.98]
[1761467386104,3.88406852,194.0,193.99,64.6]
[1761467386906,2.89646459,194.0,193.99,64.6]
[1761467387904,4.40898879,194.04,194.0,2.62]
[1761467388205,4.40898879,194.04,194.03,2.62]
[1761467388402,4.40898879,194.04,194.03,64.6]
[1761467388613,4.40748204,194.04,194.03,64.6]
[1761467390203,4.62748204,194.05,194.03,64.6]
[1761467394218,4.40748204,194.05,194.04,2.62]
[1761467394419,5.03473423,194.07,194.04,2.62]
[1761467394718,4.62566475,194.06,194.04,2.62]
[1761467396011,4.40566475,194.06,194.04,2.62]
[1761467396212,4.62566475,194.07,194.04,2.62]
[1761467397220,4.40566475,194.07,194.04,2.62]
[1761467397414,0.22,194.06,194.04,2.62]
[1761467397612,0.22,194.06,194.03,61.98]
[1761467398422,0.22,194.06,194.04,2.62]
[1761467398921,3.83519769,194.05,194.03,61.98]
[1761467399108,3.83519769,194.04,194.03,64.6]
[1761467403118,4.40420221,194.08,194.03,64.6]
[1761467403119,4.62420221,194.08,194.04,2.75]
[1761467403324,0.22,194.08,194.04,2.75]
[1761467411931,0.22,194.08,194.01,2.7]
[1761467412130,0.22,194.07,194.02,61.98]
[1761467412326,0.22,194.07,194.03,2.7]
[1761467415123,0.22,194.05,194.03,2.7]
[1761467417736,0.22,194.08,194.03,2.7]
[1761467417930,4.02787765,194.07,194.03,2.7]
[1761467418129,3.80787765,194.06,194.03,2.7]
[1761467418323,3.80787765,194.05,194.03,2.7]
[1761467418531,4.36628578,194.08,194.03,2.7]
[1761467418830,3.80808545,194.07,194.03,2.7]
[1761467419033,3.80808545,194.06,194.03,2.7]
[1761467419234,3.80808545,194.05,194.03,2.7]
[1761467419428,4.36766697,194.08,194.03,2.7]
[1761467419632,3.80937288,194.07,194.03,2.7]
[1761467419830,3.80937288,194.06,194.03,2.7]
[1761467420031,3.80937288,194.05,194.03,2.7]
[1761467420238,4.58800216,194.08,194.03,2.7]
[1761467420436,3.80963974,194.07,194.03,2.7]
[1761467420636,3.80963974,194.06,194.03,2.7]
[1761467420832,3.80963974,194.05,194.03,2.7]
[1761467421138,4.58800216,194.08,194.03,2.7]
[1761467421330,3.80971608,194.07,194.03,2.7]
[1761467421531,3.80971608,194.06,194.03,2.7]
[1761467421836,3.80971608,194.05,194.03,2.7]
[1761467422037,4.36800216,194.08,194.03,2.7]
[1761467422241,3.80949908,194.07,194.03,2.7]
[1761467422436,3.80949908,194.06,194.03,2.7]
[1761467422637,4.58877455,194.09,194.03,2.7]
[1761467422938,3.8100532,194.08,194.03,2.7]
[1761467423143,3.8100532,194.07,194.03,2.7]
[1761467423338,3.8100532,194.06,194.03,2.7]
[1761467423539,4.36871992,194.09,194.03,2.7]
[1761467423837,3.81031343,194.08,194.03,2.7]
[1761467424041,3.81031343,194.07,194.03,2.7]
[1761467424340,3.81031343,194.06,194.03,2.7]
[1761467424540,3.81031343,194.05,194.04,5.39]
[1761467425233,4.36871992,194.09,194.04,5.39]
[1761467425434,4.03344824,194.08,194.05,2.7]
[1761467425631,3.81344824,194.07,194.05,2.7]
[1761467425838,3.81344824,194.06,194.05,2.7]
[1761467429636,4.03344824,194.06,194.04,2.69]
[1761467429941,3.81344824,194.05,194.04,5.39]
[1761467430147,0.22,194.06,194.04,5.39]
[1761467430347,3.81504772,194.05,194.04,5.39]
[1761467435647,3.81504772,194.05,194.04,67.35]
[1761467437547,3.81504772,194.05,194.04,5.39]
[1761467439043,3.81504772,194.05,194.04,67.35]
[1761467439549,3.81504772,194.05,194.04,64.66]
[1761467454760,3.81504772,194.05,194.04,66.15509394]
[1761467463166,4.81473423,194.09,194.05,2.81]
[1761467467474,4.81473423,194.09,194.06,5.5]
[1761467467677,4.81473423,194.09,194.07,61.96]
[1761467468179,4.81473423,194.09,194.07,64.77]
[1761467475080,3.80061437,194.08,194.07,64.77]
[1761467475579,8.12154454,194.08,194.07,64.77]
[1761467476982,3.80061437,194.08,194.07,64.77]
[1761467478384,1.44077156,194.09,194.08,2.76]
[1761467478684,2.84,194.19,194.08,2.76]
[1761467478685,7.65473423,194.19,194.08,2.76]
[1761467478882,2.84,194.18,194.15,4.25509394]
[1761467479080,2.84,194.18,194.16,62.16]
[1761467480488,2.84,194.18,194.17,1.49509394]
[1761467481186,2.84,194.18,194.17,6.14669419]
[1761467481487,2.84,194.18,194.17,6.14654292]
[1761467489786,2.84,194.18,194.17,8.90654292]
[1761467490393,2.84,194.25,194.17,8.90654292]
[1761467490598,2.84,194.25,194.21,1.49509394]
[1761467490793,2.84,194.25,194.22,4.65144898]
[1761467490994,2.84,194.25,194.23,4.65144898]
[1761467491190,2.84,194.25,194.24,4.65144898]
[1761467492096,2.84,194.25,194.24,4.63447077]
[1761467497202,3.86,194.25,194.24,4.63447077]
[1761467499004,2.84,194.25,194.24,4.63447077]
[1761467500008,2.84,194.25,194.14,2.8]
[1761467500308,1.12,194.23,194.14,4.29509394]
[1761467500510,1.12,194.21,194.14,4.29509394]
[1761467501612,1.12,194.21,194.15,1.49509394]
[1761467504204,1.12,194.21,194.06,4.637]
[1761467504510,1.12,194.21,194.13,2.8]
[1761467505007,1.12,194.21,194.15,2.8]
[1761467512618,2.61509394,194.21,194.15,2.8]
[1761467512814,1.12,194.2,194.15,2.8]
[1761467523327,4.79339458,194.2,194.15,2.8]
[1761467523524,1.12,194.19,194.15,2.8]
[1761467532737,1.12,194.18,194.12,2.7]
[1761467532936,1.12,194.17,194.12,2.7]
[1761467537750,1.12,194.14,194.12,2.7]
[1761467546255,5.91339458,194.19,194.12,2.7]
[1761467546559,1.12,194.19,194.12,2.7]
[1761467551056,5.91339458,194.19,194.12,2.7]
[1761467552054,1.12,194.18,194.12,2.7]
[1761467554958,1.12,194.17,194.12,2.7]
[1761467557863,1.12,194.17,194.02,8.75742035]
[1761467557864,1.12,194.16,194.02,8.75742035]
[1761467558065,1.12,194.15,194.03,2.7]
[1761467574691,2.61485073,194.15,194.04,1.49485073]
[1761467574891,1.12,194.14,194.05,2.68]
[1761467576688,1.49485073,194.15,194.05,2.68]
[1761467580393,4.79339458,194.16,194.07,1.49485073]
[1761467580696,1.12,194.17,194.08,2.68]
[1761467582089,6.28824531,194.18,194.08,2.68]
[1761467582294,7.40824531,194.18,194.08,2.68]
[1761467582694,2.61485073,194.18,194.08,2.68]
[1761467583300,1.12,194.17,194.08,2.68]
[1761467590099,1.12,194.15,194.08,2.68]
[1761467593505,1.49485073,194.14,194.08,2.68]
[1761467593709,1.12,194.13,194.08,2.68]
[1761467594503,1.12,194.11,194.04,2.78]
[1761467602016,1.12,194.11,194.04,1.49485073]
[1761467602216,1.12,194.11,194.05,2.78]
[1761467611215,1.12,194.11,194.06,2.78]
[1761467612626,1.12,194.11,194.03,2.78]
[1761467623835,1.12,194.11,194.05,2.86]
[1761467630241,1.12,194.11,194.05,4.35485073]
[1761467630448,1.12,194.11,194.06,2.86]
[1761467636348,1.12,194.1,194.06,2.86]
[1761467638950,4.80157111,194.11,194.06,2.86]
[1761467639251,5.92157111,194.11,194.06,2.86]
[1761467639452,4.80157111,194.11,194.06,2.86]
[1761467639652,1.12,194.1,194.06,2.86]
[1761467646753,4.80157111,194.11,194.06,2.86]
[1761467647053,4.80157111,194.1,194.06,2.86]
[1761467649045,5.92157111,194.1,194.06,2.86]
[1761467649949,1.12,194.09,194.06,2.86]
[1761467652847,1.12,194.08,194.06,2.86]
[1761467654557,5.92157111,194.09,194.06,2.86]
[1761467655959,1.12,194.09,194.06,2.86]
[1761467658361,4.80157111,194.1,194.06,2.86]
[1761467658755,5.92157111,194.1,194.06,2.86]
[1761467660458,4.80157111,194.1,194.06,2.86]
[1761467660662,1.12,194.09,194.06,2.86]
[1761467663868,5.92157111,194.09,194.06,2.86]
[1761467664472,1.12,194.08,194.06,2.86]
[1761467665374,4.36648917,194.07,194.06,2.86]
[1761467669780,4.36648917,194.08,194.06,2.86]
[1761467670074,4.36648917,194.07,194.06,2.86]
[1761467670266,4.36648917,194.08,194.06,2.86]
[1761467670470,4.36648917,194.07,194.06,2.86]
[1761467670764,4.36648917,194.08,194.06,2.86]
[1761467670969,4.36648917,194.07,194.06,2.86]
[1761467671268,4.36648917,194.08,194.06,2.86]
[1761467671469,4.36648917,194.07,194.06,2.86]
[1761467671677,4.36648917,194.08,194.06,2.86]
[1761467671870,4.36648917,194.07,194.06,2.86]
[1761467672070,4.36648917,194.08,194.06,2.86]
[1761467672275,4.36648917,194.07,194.06,2.86]
[1761467672576,4.36648917,194.08,194.06,2.86]
[1761467672770,4.36648917,194.07,194.06,2.86]
[1761467672973,4.36648917,194.08,194.06,2.86]
[1761467673173,4.36648917,194.07,194.06,2.86]
[1761467673373,4.36648917,194.08,194.06,2.86]
[1761467673580,4.36648917,194.07,194.06,2.86]
[1761467673779,4.36648917,194.08,194.06,2.86]
[1761467674079,4.36648917,194.07,194.06,2.86]
[1761467674281,4.36648917,194.08,194.06,2.86]
[1761467674482,4.36648917,194.07,194.06,2.86]
[1761467674779,4.36648917,194.08,194.06,2.86]
[1761467674973,4.36648917,194.07,194.06,2.86]
[1761467675174,4.36648917,194.08,194.06,2.86]
[1761467675373,4.36648917,194.07,194.06,2.86]
[1761467675574,4.36648917,194.08,194.06,2.86]
[1761467675778,4.36648917,194.07,194.06,2.86]
[1761467675979,4.36648917,194.08,194.06,2.86]
[1761467676180,4.36648917,194.07,194.06,2.86]
[1761467676478,4.36648917,194.08,194.06,2.86]
[1761467676678,4.36648917,194.07,194.06,2.86]
[1761467676880,4.36648917,194.08,194.06,2.86]
[1761467677179,4.36648917,194.07,194.06,2.86]
[1761467677375,4.36648917,194.08,194.06,2.86]
[1761467677577,4.36648917,194.07,194.06,2.86]
[1761467677779,4.36648917,194.08,194.06,2.86]
[1761467678077,4.36648917,194.07,194.06,2.86]
[1761467678376,4.36648917,194.08,194.06,2.86]
[1761467678678,4.36648917,194.07,194.06,2.86]
[1761467678879,4.36648917,194.08,194.06,2.86]
[1761467679081,4.36648917,194.07,194.06,2.86]
[1761467679380,4.36648917,194.08,194.06,2.86]
[1761467679574,4.36648917,194.07,194.06,2.86]
[1761467679776,4.36648917,194.08,194.06,2.86]
[1761467679973,4.36648917,194.07,194.06,2.86]
[1761467680274,5.48648917,194.08,194.06,2.86]
[1761467680475,4.36648917,194.07,194.06,2.86]
[1761467715298,1.12,194.08,194.06,2.86]
[1761467715596,4.36648917,194.07,194.06,2.86]
[1761467716398,5.48648917,194.07,194.01,2.85]
[1761467716605,1.12,194.07,194.01,2.85]
[1761467717004,5.48648917,194.07,194.01,2.85]
[1761467717304,1.12,194.07,194.01,2.85]
[1761467717806,5.48648917,194.07,194.01,2.85]
[1761467718103,1.12,194.07,194.01,2.85]
[1761467718506,5.48648917,194.07,194.01,2.85]
[1761467718704,1.12,194.07,194.01,2.85]
[1761467719107,5.48648917,194.07,194.01,2.85]
[1761467719306,1.12,194.07,194.01,2.85]
[1761467719809,5.48648917,194.07,194.01,2.85]
[1761467720007,1.12,194.07,194.01,2.85]
[1761467720507,5.48648917,194.07,194.01,2.85]
[1761467720708,1.12,194.07,194.01,2.85]
[1761467720905,1.12,194.05,194.01,2.85]
[1761467721099,1.12,194.04,194.01,2.85]
[1761467721305,3.67111874,194.03,194.01,2.85]
[1761467721604,1.12,194.04,194.01,2.85]
[1761467721913,1.12,194.02,194.01,2.85]
[1761467722110,4.79087009,194.02,193.99,2.85]
[1761467722411,1.12,194.02,193.99,2.85]
[1761467724613,4.787429,194.02,193.99,2.85]
[1761467724909,1.12,194.02,193.99,2.85]
[1761467725514,4.78736557,194.02,193.99,2.85]
[1761467725810,1.12,194.02,193.99,2.85]
[1761467726514,3.66691063,194.02,193.99,2.85]
[1761467726717,4.78691063,194.04,193.99,2.85]
[1761467726918,3.66691063,194.03,193.99,2.85]
[1761467727113,1.12,194.04,193.99,2.85]
[1761467727323,4.78588554,194.03,193.99,2.85]
[1761467727522,3.66588554,194.02,193.99,2.85]
[1761467727712,4.78579622,194.02,193.99,2.85]
[1761467728010,1.12,194.01,193.99,2.85]
[1761467729010,4.7857152,194.04,193.99,2.85]
[1761467729214,3.6657152,194.03,193.99,2.85]
[1761467729404,3.6657152,194.02,193.99,2.85]
[1761467729611,3.6657152,194.03,193.99,2.85]
[1761467732314,1.12,194.04,193.99,2.85]
[1761467732723,4.78437299,194.04,193.99,2.85]
[1761467732924,5.4435176,194.07,193.99,2.85]
[1761467733125,3.66437103,194.06,193.99,2.85]
[1761467733424,3.66437103,194.05,193.99,2.85]
[1761467733609,3.66437103,194.06,193.99,2.85]
[1761467733814,3.66437103,194.05,193.99,2.85]
[1761467734016,3.66437103,194.06,193.99,2.85]
[1761467734219,3.66437103,194.05,193.99,2.85]
[1761467734521,3.66437103,194.06,193.99,2.85]
[1761467734711,3.66437103,194.05,193.99,2.85]
[1761467734918,4.78437103,194.06,193.99,2.85]
[1761467735119,3.66437103,194.05,193.99,2.85]
[1761467746136,1.13,194.05,193.99,2.85]
[1761467746525,4.79437103,194.05,193.99,2.85]
[1761467746736,1.13,194.05,193.99,2.85]
[1761467747432,4.80123272,194.05,193.99,2.85]
[1761467747731,1.13,194.05,193.99,2.85]
[1761467748330,4.8013069,194.05,193.99,2.85]
[1761467748530,1.13,194.05,193.99,2.85]
[1761467749136,4.80159827,194.05,193.99,2.85]
[1761467749441,1.13,194.05,193.99,2.85]
[1761467750138,4.80166873,194.05,193.99,2.85]
[1761467750338,4.80166873,194.04,193.99,2.85]
[1761467750540,1.13,194.04,193.99,2.85]
[1761467751342,4.80174779,194.04,193.99,2.85]
[1761467751537,1.13,194.04,193.99,2.85]
[1761467752043,3.67186131,194.03,193.99,2.85]